bitfinex-derivatives/quotes_ETHF0:USTF0_20250404
["timestamp","ask_amount","ask_price","bid_price","bid_amount"]
[1743731843934,0.00833518,1798.0,1797.7,1.4105]
[1743731844133,1.11295,1797.7,1797.6,0.00833518]
[1743731844329,1.11321,1797.3,1797.0,1.11336]
[1743731844540,1.4094,1797.2,1797.1,4.32112]
[1743731844833,1.4094,1797.2,1796.4,3.37787486]
[1743731845033,1.11345,1796.9,1796.6,1.11363]
[1743731845237,1.11345,1796.9,1796.1,7.40081]
[1743731845238,3.2078,1796.5,1794.9,3.2078]
[1743731845435,3.2078,1795.8,1795.6,1.11422]
[1743731845633,3.2078,1796.1,1795.5,0.00833518]
[1743731845832,8.805,1796.4,1795.5,0.00833518]
[1743731845833,0.00833518,1795.9,1795.8,1.11409]
[1743731846046,0.00833518,1795.9,1795.7,1.11416]
[1743731846340,5.18e-06,1795.9,1795.8,4.32193]
[1743731846536,5.18e-06,1795.9,1795.8,1.11413]
[1743731846742,5.18e-06,1795.9,1795.8,11.63693]
[1743731847236,5.18e-06,1795.9,1795.7,1.5083]
[1743731847444,5.18e-06,1795.9,1795.8,1.11413]
[1743731847630,5.18e-06,1795.9,1795.5,0.00833518]
[1743731848034,5.18e-06,1795.9,1795.8,1.11413]
[1743731848235,5.18e-06,1795.9,1795.6,5.6266]
[1743731848541,5.18e-06,1795.9,1795.8,1.11413]
[1743731848745,5.18e-06,1795.9,1795.8,6.82193]
[1743731849335,5.18e-06,1795.9,1795.7,1.5191]
[1743731849543,5.18e-06,1795.9,1795.7,2.63325]
[1743731849738,1.11425,1795.6,1795.5,0.00833518]
[1743731849930,14.1208,1795.6,1794.3,3.2078]
[1743731850131,3.2078,1794.6,1793.8,3.2078]
[1743731850331,3.2078,1794.7,1793.8,4.7065]
[1743731850631,3.2078,1794.3,1794.0,3.2078]
[1743731850833,6.5527,1794.6,1794.1,1.4987]
[1743731851030,6.5527,1794.6,1794.2,1.11509]
[1743731851237,0.00835886,1794.5,1794.2,0.00835886]
[1743731851442,3.2078,1794.3,1793.2,3.2078]
[1743731851638,3.2078,1793.5,1792.6,0.7158]
[1743731851943,3.2078,1793.5,1792.7,3.2078]
[1743731852240,7.91969,1793.7,1792.7,3.2078]
[1743731852241,4.32325,1793.7,1793.3,1.11563]
[1743731852433,4.32309,1794.0,1793.6,3.2078]
[1743731852634,0.00835886,1793.7,1793.6,3.2078]
[1743731852835,14.3358,1794.7,1793.7,2.78857]
[1743731853038,8.3678,1794.7,1793.9,1.11527]
[1743731853240,3.2078,1794.3,1793.7,3.2078]
[1743731853440,8.3788,1794.3,1793.5,3.2078]
[1743731853638,8.3788,1794.3,1793.5,1.11552]
[1743731853833,3.2078,1794.1,1793.8,1.11533]
[1743731854033,4.32238,1795.1,1794.1,2.78797]
[1743731854240,4.32238,1795.1,1794.5,3.2078]
[1743731854241,4.6273,1795.1,1794.5,3.2078]
[1743731854443,3.21615886,1794.8,1794.3,3.2078]
[1743731854740,3.21615886,1794.8,1793.5,2.78886]
[1743731854741,3.2078,1794.5,1793.1,0.5576]
[1743731855039,2.78992,1792.9,1791.9,3.2078]
[1743731855240,1.4195,1792.8,1792.3,3.2078]
[1743731855442,5.396,1792.8,1791.8,3.2078]
[1743731855641,3.2078,1791.9,1791.1,9.62702584]
[1743731855837,1.11708,1791.1,1790.4,2.58956]
[1743731856041,5.579,1791.3,1790.4,1.4721]
[1743731856343,3.2078,1791.0,1789.4,3.2078]
[1743731856546,3.2078,1790.7,1789.8,1.1178]
[1743731856738,1.11749,1790.4,1789.7,1.467]
[1743731856937,1.11749,1790.4,1790.3,3.2078]
[1743731856938,0.00835886,1790.4,1790.3,3.2078]
[1743731857138,3.2078,1791.5,1790.4,2.79371]
[1743731857344,3.2078,1791.6,1790.7,3.2078]
[1743731857544,3.2078,1790.8,1789.5,3.2078]
[1743731857841,3.2078,1790.6,1789.5,3.2078]
[1743731858045,1.4243,1790.5,1789.8,3.2078]
[1743731858242,1.4243,1790.5,1789.6,1.467]
[1743731858243,3.2078,1790.4,1789.6,3.2078]
[1743731858452,0.00835886,1790.2,1789.9,0.00835886]
[1743731858639,3.2078,1792.1,1791.0,1.11705]
[1743731858839,1.4243,1791.9,1790.8,9.4198]
[1743731859041,3.2078,1793.1,1791.7,3.2078]
[1743731859249,2.78881,1793.6,1793.0,3.2078]
[1743731859447,3.2078,1793.7,1792.8,3.2078]
[1743731859636,3.2078,1793.2,1792.4,3.2078]
[1743731859836,2.5,1793.2,1792.4,3.2078]
[1743731860040,2.5,1793.2,1791.7,0.7166]
[1743731860041,23.00009,1793.1,1792.6,8.86e-06]
[1743731860240,2.79147,1791.9,1790.7,3.2078]
[1743731860440,3.2078,1791.4,1790.6,3.2078]
[1743731860641,3.2078,1791.0,1789.9,3.2078]
[1743731860847,1.11841,1789.0,1788.5,1.11867]
[1743731861044,1.11828,1789.2,1788.7,1.11853]
[1743731861237,2.79497,1789.7,1788.9,3.2078]
[1743731861238,3.2078,1789.7,1788.9,3.2078]
[1743731861439,3.2078,1789.7,1788.1,2.79724]
[1743731861440,3.2078,1789.3,1787.4,3.2078]
[1743731861643,3.2078,1788.4,1787.4,1.5321]
[1743731861845,3.2078,1788.6,1788.0,3.2078]
[1743731862043,4.6236,1789.1,1788.1,1.5321]
[1743731862249,3.2078,1788.7,1788.1,1.5321]
[1743731862445,0.6982,1790.1,1788.3,2.79701]
[1743731862446,3.2078,1789.3,1788.3,2.79701]
[1743731862747,3.2078,1789.5,1788.4,1.5169]
[1743731862948,3.2078,1790.5,1789.4,3.2078]
[1743731863154,0.6982,1791.3,1790.4,3.2078]
[1743731863448,3.2078,1790.5,1789.4,3.2078]
[1743731863642,7.629,1790.4,1789.4,3.2078]
[1743731863849,10.8398,1790.9,1790.0,3.2078]
[1743731864047,1.11706,1791.1,1790.2,3.2078]
[1743731864243,3.2078,1791.2,1790.8,3.2078]
[1743731864547,0.00838573,1790.8,1790.6,3.2078]
[1743731864747,0.00838573,1790.8,1790.1,4.72470131]
[1743731864748,0.00838573,1790.8,1790.5,3.2078]
[1743731865048,0.00838573,1790.8,1788.4,3.2078]
[1743731865049,3.2078,1790.3,1788.4,3.2078]
[1743731865348,0.11168816,1790.7,1788.6,3.2078]
[1743731865349,3.2078,1789.2,1788.6,3.2078]
[1743731865543,3.2078,1789.2,1788.8,3.2078]
[1743731865738,7.809,1790.1,1788.9,1.4281]
[1743731865941,3.2078,1789.9,1789.3,1.11812]
[1743731866140,3.2078,1789.2,1787.5,3.2078]
[1743731866340,3.2078,1788.7,1788.1,3.2078]
[1743731866544,3.2078,1788.8,1787.5,3.2078]
[1743731866746,0.8592,1789.6,1788.5,3.2078]
[1743731866951,3.2078,1789.5,1788.6,4.6359]
[1743731867252,3.2078,1790.5,1789.4,3.2078]
[1743731867449,4.067,1790.5,1789.7,3.2078]
[1743731867651,4.067,1790.5,1789.8,1.4281]
[1743731867953,3.00926,1791.1,1790.2,1.11761]
[1743731867954,0.00838573,1790.3,1790.2,1.11761]
[1743731868145,3.2078,1791.1,1790.2,3.2078]
[1743731868351,3.2078,1791.4,1790.9,1.11713]
[1743731868646,0.8592,1791.5,1791.2,3.2078]
[1743731868841,0.8592,1791.5,1790.7,3.2078]
[1743731869039,0.8592,1791.5,1790.6,3.20780131]
[1743731869245,3.2078,1791.0,1790.3,1.11752]
[1743731869446,3.2078,1791.0,1790.1,3.2078]
[1743731869645,3.2078,1791.0,1790.5,0.00838573]
[1743731869844,4.32516,1790.6,1790.5,5.73e-06]
[1743731870050,2.7939,1790.3,1789.3,4.32592]
[1743731870249,5.7078,1790.6,1788.5,2.79659]
[1743731870250,3.2078,1789.8,1789.0,3.2078]
[1743731870554,3.2078,1789.1,1788.2,3.2078]
[1743731870744,3.2078,1788.4,1787.4,3.2078]
[1743731870942,69.9993,1789.0,1785.9,0.41667598]
[1743731870943,3.2078,1787.5,1785.9,0.41667598]
[1743731871149,3.2078,1787.5,1786.4,4.32775]
[1743731871150,3.2078,1787.2,1786.4,4.32775]
[1743731871350,3.2078,1787.6,1786.8,3.2078]
[1743731871651,3.2078,1787.6,1785.9,6.16139]
[1743731871652,1.11926,1787.6,1787.2,0.02890522]
[1743731871956,3.21618573,1787.4,1787.2,0.02890522]
[1743731872157,3.21618573,1787.4,1786.6,0.00838573]
[1743731872158,2.79876,1787.2,1786.6,0.00838573]
[1743731872352,2.79876,1787.2,1783.9,7.10161923]
[1743731872353,3.2078,1786.7,1784.8,4.6831]
[1743731872546,3.2078,1786.2,1785.3,3.2078]
[1743731872746,3.2078,1786.2,1785.0,3.2078]
[1743731873049,5.968,1787.7,1786.2,2.8002]
[1743731873050,3.2078,1787.7,1786.2,2.8002]
[1743731873249,3.2078,1787.2,1786.8,1.11974]
[1743731873448,0.00838573,1787.1,1786.5,3.2078]
[1743731873648,3.2078,1787.7,1786.7,3.2078]
[1743731873843,8.781,1788.6,1786.8,11.9828]
[1743731873844,3.2078,1787.9,1786.8,11.9828]
[1743731874045,9.6394,1788.6,1786.8,11.9828]
[1743731874046,3.2078,1789.0,1788.5,1.11863]
[1743731874355,3.2078,1789.9,1789.1,1.11829]
[1743731874556,3.2078,1789.9,1788.4,2.79679]
[1743731874557,0.8584,1789.8,1788.9,3.2078]
[1743731874745,3.2078,1789.7,1788.6,3.2078]
[1743731874948,3.2078,1789.1,1788.2,3.2078]
[1743731875257,0.8584,1789.0,1788.5,3.2078]
[1743731875557,3.2078,1788.7,1787.5,3.2078]
[1743731875753,3.2078,1787.6,1785.9,1.12028]
[1743731875957,3.2078,1786.6,1786.0,1.12021]
[1743731876156,3.2078,1786.1,1785.1,3.2078]
[1743731876453,3.2078,1785.3,1784.1,3.2078]
[1743731876648,3.2078,1785.5,1784.6,3.2078]
[1743731876853,3.2078,1785.8,1785.2,3.2078]
[1743731877153,0.00838573,1785.2,1784.1,3.2078]
[1743731877455,0.00838573,1785.2,1784.3,3.2078]
[1743731877656,1.12136,1784.3,1783.7,0.5608]
[1743731877952,3.2078,1784.8,1784.0,3.2078]
[1743731878153,5.73e-06,1784.2,1784.1,1.12143]
[1743731878548,3.2078,1785.9,1785.8,1.12037]
[1743731878754,3.2078,1787.0,1786.6,1.1198]
[1743731879052,0.8619,1787.3,1786.0,3.2078]
[1743731879053,3.2078,1787.1,1786.0,3.2078]
[1743731879256,3.2078,1786.3,1785.7,3.2078]
[1743731879458,3.2078,1785.6,1783.9,3.2078]
[1743731879756,3.2078,1785.3,1784.3,3.2078]
[1743731879958,3.2078,1784.8,1784.6,5.73e-06]
[1743731880160,3.2078,1785.4,1784.6,5.73e-06]
[1743731880460,3.2078,1787.1,1785.2,3.2078]
[1743731880761,5.5935,1788.5,1787.0,3.2078]
[1743731880762,4.32713,1787.5,1787.0,3.2078]
[1743731880956,4.0697,1788.4,1787.4,3.2078]
[1743731881158,3.2078,1788.5,1787.8,3.2078]
[1743731881456,0.09734742,1789.9,1789.0,1.11836]
[1743731881652,3.2078,1789.4,1788.8,4.32625]
[1743731881853,3.2078,1789.9,1789.0,3.2078]
[1743731882058,0.00838573,1789.6,1789.4,3.2078]
[1743731882250,3.2078,1789.9,1789.5,1.5295]
[1743731882449,3.2078,1789.9,1788.9,0.00838573]
[1743731882450,3.2078,1789.7,1788.9,0.00838573]
[1743731882650,3.2078,1789.7,1789.2,3.2078]
[1743731882855,1.1175,1790.4,1789.7,1.1179]
[1743731883057,1.11803,1789.6,1788.9,0.00838573]
[1743731883262,3.2078,1789.6,1788.7,4.7373]
[1743731883459,3.2078,1790.4,1789.5,3.2078]
[1743731883659,3.2078,1790.4,1789.6,4.6782]
[1743731883960,3.2078,1790.5,1789.6,1.4704]
[1743731884161,3.2078,1790.5,1789.7,3.2078]
[1743731884657,0.8622,1791.0,1789.9,3.2078]
[1743731884658,3.2078,1790.3,1789.9,3.2078]
[1743731884856,3.21618573,1790.3,1790.0,1.4704]
[1743731885059,3.2078,1790.1,1789.9,0.00838573]
[1743731885260,3.21618573,1790.3,1789.9,0.00838573]
[1743731885457,3.2078,1790.0,1789.9,0.00838573]
[1743731885657,3.2078,1790.0,1789.6,1.4704]
[1743731885862,3.2078,1790.1,1789.6,1.4704]
[1743731886060,3.2078,1789.9,1789.6,1.4704]
[1743731886359,3.2078,1790.1,1789.6,4.6782]
[1743731886558,3.2078,1790.1,1789.7,1.4704]
[1743731886957,3.2078,1790.1,1789.3,3.2078]
[1743731887265,1.11771,1790.1,1789.5,1.118]
[1743731887568,3.2078,1789.7,1789.1,3.2078]
[1743731887754,3.2078,1790.0,1789.6,3.2078]
[1743731887959,0.00838573,1790.3,1789.6,3.2078]
[1743731888159,3.2078,1790.2,1789.6,0.00838573]
[1743731888358,3.2078,1790.0,1789.6,0.00838573]
[1743731888772,5.73e-06,1790.3,1790.2,1.11761]
[1743731888959,0.11163829,1791.5,1790.4,2.79373]
[1743731889156,3.2078,1791.2,1790.4,3.2078]
[1743731889356,0.11163829,1791.5,1789.7,68.31651072]
[1743731889357,3.2078,1790.6,1789.8,3.2078]
[1743731889555,3.2078,1789.9,1788.8,2.79611]
[1743731889863,3.2078,1789.6,1788.8,2.79623]
[1743731890061,3.2078,1789.7,1789.2,0.00838573]
[1743731890257,3.21618573,1789.5,1789.2,0.00838573]
[1743731890457,0.00838573,1789.5,1789.2,0.00838573]
[1743731890863,3.2078,1789.4,1789.2,0.00838573]
[1743731891058,3.2078,1789.4,1788.3,2.79699]
[1743731891356,2.79454,1789.9,1788.3,2.79699]
[1743731891357,3.2078,1789.9,1789.3,7.22415911]
[1743731891663,3.2078,1789.7,1789.6,1.11793]
[1743731891856,3.2078,1789.7,1789.2,3.2078]
[1743731892059,3.2078,1789.5,1789.4,1.11809]
[1743731892259,3.2078,1789.7,1789.1,2.79567]
[1743731892459,5.73e-06,1789.6,1789.5,1.11805]
[1743731892669,3.2078,1790.5,1790.3,1.11753]
[1743731892868,3.2078,1790.5,1789.8,2.79457]
[1743731893163,3.2078,1789.9,1788.9,3.2078]
[1743731893370,3.2078,1789.0,1788.4,3.9113]
[1743731893562,3.2078,1788.6,1787.9,2.79753]
[1743731893770,3.2078,1788.0,1787.1,0.7586]
[1743731893970,3.2078,1787.5,1787.1,0.7586]
[1743731894265,0.2198,1789.3,1787.4,3.2078]
[1743731894562,3.2078,1789.3,1788.7,3.2078]
[1743731894866,3.2078,1789.3,1788.5,61.064]
[1743731895164,3.21618573,1789.2,1788.8,0.00838573]
[1743731895666,3.2078,1788.9,1788.8,0.00838573]
[1743731895867,3.2078,1788.7,1787.3,1.1194]
[1743731896164,3.2078,1787.4,1786.5,3.2078]
[1743731896357,3.2078,1786.6,1785.6,0.7586]
[1743731896565,3.2078,1786.6,1786.2,3.2078]
[1743731896765,3.2078,1786.3,1785.6,0.7586]
[1743731896961,3.2078,1786.5,1785.5,3.2078]
[1743731897162,3.2078,1786.3,1785.8,0.00838573]
[1743731897368,3.2078,1786.5,1785.8,3.21618573]
[1743731897563,0.00838573,1786.6,1786.5,1.11993]
[1743731897770,0.00838573,1786.6,1786.3,1.12001]
[1743731898072,0.00838573,1786.6,1786.0,3.2078]
[1743731898268,0.00838573,1786.6,1786.5,1.11993]
[1743731898464,0.00838573,1786.6,1786.4,3.2078]
[1743731898465,3.21618573,1786.6,1785.8,3.21618573]
[1743731898671,3.2078,1785.9,1785.8,0.00838573]
[1743731898866,4.3281,1785.9,1785.8,5.73e-06]
[1743731899068,3.2078,1785.9,1785.8,1.12037573]
[1743731899270,3.2078,1786.1,1786.0,1.12024]
[1743731899471,3.2078,1786.1,1785.8,5.73e-06]
[1743731899661,3.2078,1785.9,1784.5,3.2078]
[1743731899869,3.2078,1784.7,1784.5,1.12117]
[1743731900174,1.1215,1784.0,1783.9,8.70722612]
[1743731900370,1.1215,1784.0,1783.7,17.41445224]
[1743731900371,3.2078,1784.0,1783.7,17.41445224]
[1743731900572,3.2078,1783.8,1783.7,17.41445224]
[1743731900766,3.2078,1783.8,1782.8,1.5247]
[1743731900972,3.2078,1783.6,1782.8,1.5247]
[1743731901172,5.73e-06,1783.9,1783.1,3.2078]
[1743731901373,5.73e-06,1783.9,1783.3,3.2078]
[1743731901567,5.73e-06,1783.9,1783.5,3.2078]
[1743731901872,3.2078,1783.4,1781.9,3.2078]
[1743731902070,3.2078,1782.8,1781.9,3.2078]
[1743731902370,0.00840949,1782.6,1782.2,0.00840949]
[1743731902573,3.2078,1784.0,1782.4,3.2078]
[1743731902777,3.2078,1784.3,1783.3,3.2078]
[1743731903069,61.142,1785.4,1783.8,3.2078]
[1743731903070,3.2078,1784.6,1783.8,3.2078]
[1743731903271,3.2078,1784.6,1783.6,3.2078]
[1743731903474,3.2078,1784.4,1783.6,3.2078]
[1743731903675,3.2078,1784.7,1783.7,3.2078]
[1743731903873,0.00840949,1784.3,1783.9,0.00840949]
[1743731904072,3.2078,1784.0,1783.9,9.49e-06]
[1743731904268,3.2078,1784.0,1783.2,3.2078]
[1743731904473,3.2078,1783.4,1782.4,1.5237]
[1743731904776,3.2078,1782.4,1781.8,0.5616]
[1743731905073,3.2078,1782.1,1781.4,11.21679882]
[1743731905273,61.175,1782.9,1781.4,11.21679882]
[1743731905274,3.2078,1782.2,1781.6,3.2078]
[1743731905471,0.00840949,1782.2,1781.9,0.00840949]
[1743731905671,56.04502,1785.0,1781.9,0.00840949]
[1743731905672,3.2078,1784.2,1782.3,3.2078]
[1743731905873,3.2078,1784.2,1782.0,61.175]
[1743731905874,4.3293,1784.0,1783.5,1.12179]
[1743731906075,3.2078,1784.9,1783.9,3.2078]
[1743731906282,3.2078,1784.9,1784.3,3.2078]
[1743731906479,3.2078,1785.7,1784.5,3.2078]
[1743731906676,1.12104,1784.8,1784.3,3.2078]
[1743731906874,3.2078,1784.4,1783.7,3.2078]
[1743731907179,1.12118,1784.5,1784.4,9.49e-06]
[1743731907381,3.2078,1784.7,1784.4,9.49e-06]
[1743731907576,3.4346,1786.2,1784.5,3.2078]
[1743731907781,1.12049,1785.6,1785.5,3.2078]
[1743731908081,0.2268,1786.2,1785.3,3.2078]
[1743731908082,3.2078,1786.2,1785.3,3.2078]
[1743731908379,3.2078,1786.2,1785.6,3.2078]
[1743731908575,3.2078,1785.7,1784.9,3.2078]
[1743731908779,3.2078,1785.6,1785.0,11.21679882]
[1743731908980,3.2078,1785.4,1784.1,1.4598]
[1743731909176,3.2078,1784.6,1784.1,11.21679882]
[1743731909375,3.2078,1784.2,1783.5,3.2078]
[1743731909575,1.12153,1784.0,1783.5,3.2078]
[1743731909781,4.33773949,1784.0,1783.6,11.21679882]
[1743731909978,0.00840949,1784.0,1783.5,14.42459882]
[1743731910184,0.00840949,1784.0,1783.9,3.2078]
[1743731910381,0.00840949,1784.0,1783.9,1.75127]
[1743731910579,2.80515,1783.2,1780.5,0.17007486]
[1743731910878,8.56681135,1784.0,1778.5,786.79474986]
[1743731910879,3.2078,1780.6,1779.4,3.2078]
[1743731911082,3.2078,1780.4,1779.6,11.19709991]
[1743731911271,3.2078,1780.4,1779.7,1.472]
[1743731911472,61.214,1782.4,1780.2,3.2078]
[1743731911682,4.33065,1781.9,1781.1,3.2078]
[1743731911977,3.2078,1782.1,1781.2,1.472]
[1743731912184,3.2078,1782.0,1781.2,1.57369991]
[1743731912375,4.33054,1782.1,1781.3,1.57369991]
[1743731912682,0.00840949,1781.9,1781.5,0.00840949]
[1743731912879,3.2078,1782.5,1781.8,3.2078]
[1743731913078,3.2078,1783.2,1782.3,3.2078]
[1743731913278,0.2266,1784.1,1782.6,3.2078]
[1743731913279,3.2078,1783.7,1782.6,3.2078]
[1743731913483,3.2078,1783.7,1781.7,3.3689]
[1743731913484,3.2078,1783.2,1782.2,3.2078]
[1743731913680,3.2078,1783.4,1782.5,3.2078]
[1743731913880,1.12256,1782.4,1782.1,1.57369991]
[1743731914184,2.80525,1783.1,1781.1,3.2078]
[1743731914185,3.32001455,1782.3,1781.1,3.2078]
[1743731914386,1.12263,1782.2,1782.1,0.00840949]
[1743731914581,0.00840949,1781.9,1781.2,4.6206]
[1743731914782,0.00840949,1781.9,1781.4,3.2078]
[1743731915078,0.00840949,1781.9,1781.2,1.4128]
[1743731915079,3.2078,1781.8,1780.4,0.5616]
[1743731915279,1.12418,1779.8,1779.4,3.2078]
[1743731915581,1.12371,1780.5,1779.6,3.2078]
[1743731915780,3.2078,1780.1,1779.5,7.57724898]
[1743731915975,61.243,1781.0,1779.5,7.55755007]
[1743731915976,0.00840949,1779.8,1779.5,7.55755007]
[1743731916173,2.80841,1781.1,1779.6,0.00840949]
[1743731916174,0.00840949,1780.0,1779.6,0.00840949]
[1743731916381,3.21620949,1780.0,1779.6,0.00840949]
[1743731916579,1.1249,1778.6,1778.5,9.86e-06]
[1743731916880,3.2078,1779.9,1778.7,3.2078]
[1743731917079,3.2078,1780.1,1778.8,61.286]
[1743731917278,3.2078,1779.9,1779.0,3.2078]
[1743731917584,3.2078,1779.9,1778.9,1.5075]
[1743731917585,3.2078,1780.6,1779.6,3.2078]
[1743731917883,0.00843384,1779.6,1778.5,9.86e-06]
[1743731918188,3.2078,1779.4,1778.9,3.2078]
[1743731918382,3.21623384,1779.6,1778.6,4.69560109]
[1743731918680,1.12422,1779.7,1779.1,1.12456]
[1743731918880,1.12434,1779.5,1779.4,9.01e-06]
[1743731919082,2.81009,1780.0,1777.6,3.2078]
[1743731919083,3.2078,1779.2,1777.6,3.2078]
[1743731919274,3.32021639,1779.1,1778.1,3.2078]
[1743731919474,3.2078,1779.4,1778.2,3.9514]
[1743731919676,3.2078,1779.1,1778.3,3.2078]
[1743731919881,3.2078,1778.5,1776.8,3.2078]
[1743731920077,3.2078,1778.6,1777.9,3.2078]
[1743731920280,3.2078,1779.3,1778.3,3.2078]
[1743731920480,3.2078,1779.7,1778.6,3.2078]
[1743731920682,3.2078,1780.1,1779.6,3.2078]
[1743731920983,3.2078,1780.1,1778.7,64.139]
[1743731920984,3.2078,1780.6,1779.4,3.2078]
[1743731921283,3.2078,1780.9,1779.9,3.2078]
[1743731921481,1.12357,1780.8,1779.9,3.2078]
[1743731921684,3.2078,1781.2,1780.3,3.2078]
[1743731921882,3.2078,1780.8,1780.4,3.2078]
[1743731922082,3.2078,1780.6,1779.6,3.2078]
[1743731922383,3.2078,1780.9,1779.4,3.2078]
[1743731922578,3.2078,1781.6,1780.7,3.2078]
[1743731922780,1.12337,1781.1,1780.7,3.2078]
[1743731923083,3.2078,1781.4,1780.2,3.2078]
[1743731923284,3.2078,1780.3,1779.0,3.2078]
[1743731923486,3.2078,1780.0,1779.4,1.12439]
[1743731923681,0.00843384,1779.8,1779.5,0.00843384]
[1743731923881,0.2319,1781.3,1779.7,3.2078]
[1743731923882,3.2078,1780.8,1779.7,3.2078]
[1743731924082,3.2078,1780.2,1779.5,0.00843384]
[1743731924283,0.01126507,1779.5,1778.9,3.2078]
[1743731924580,3.2078,1779.3,1778.3,3.2078]
[1743731924782,2.8129,1778.2,1776.4,3.2078]
[1743731924982,2.8159,1776.3,1774.8,3.2078]
[1743731925282,3.2078,1776.1,1775.0,3.37787486]
[1743731925485,3.2078,1776.3,1775.5,0.00843384]
[1743731925689,3.2078,1776.8,1776.2,3.2078]
[1743731925878,3.2078,1777.4,1776.3,3.2078]
[1743731926077,3.2078,1776.8,1776.3,0.00843384]
[1743731926292,0.0244,1777.6,1775.6,6.9391358]
[1743731926293,7.25e-06,1776.3,1776.2,1.12642]
[1743731926485,7.25e-06,1776.3,1776.2,4.33422]
[1743731926692,3.2078,1778.0,1776.7,2.81525]
[1743731926894,3.2078,1778.2,1778.0,0.06030109]
[1743731927184,1.12506,1778.4,1778.0,0.06030109]
[1743731927383,3.2078,1778.3,1777.3,3.2078]
[1743731927578,3.2078,1777.8,1776.8,3.9711]
[1743731927776,3.21623384,1778.0,1777.6,0.00843384]
[1743731927978,0.00843384,1778.0,1777.8,3.2078]
[1743731928180,0.00843384,1778.0,1777.6,0.00843384]
[1743731928382,3.2078,1777.7,1774.3,5.63799]
[1743731928582,3.2078,1775.5,1774.9,0.721]
[1743731928786,3.2078,1776.1,1775.1,3.2078]
[1743731928984,3.2078,1775.2,1774.1,3.2078]
[1743731929286,3.2078,1776.5,1775.1,3.2078]
[1743731929500,3.2078,1775.9,1775.1,3.2078]
[1743731929785,0.00843384,1776.0,1775.6,0.00843384]
[1743731929985,3.2078,1776.4,1775.6,0.00843384]
[1743731930182,3.2078,1776.4,1775.8,3.2078]
[1743731930383,3.2078,1776.4,1775.4,3.2078]
[1743731930585,3.2078,1776.8,1776.1,3.2078]
[1743731930888,3.2078,1778.0,1776.7,3.2078]
[1743731931085,3.2078,1778.0,1777.0,3.2078]
[1743731931389,3.84e-06,1777.5,1777.4,1.1256]
[1743731931579,3.2078,1778.3,1777.5,0.07229882]
[1743731931780,3.2078,1777.7,1777.3,0.00843384]
[1743731931985,3.2078,1777.7,1775.8,2.81665]
[1743731931986,0.06030109,1777.3,1776.4,3.2078]
[1743731932287,2.81564,1776.5,1775.3,3.2078]
[1743731932481,1.1275,1774.5,1774.4,3.02321306]
[1743731932682,3.2078,1774.9,1773.9,9.07564986]
[1743731932882,3.2078,1774.7,1773.9,3.2078]
[1743731933081,3.2078,1774.5,1774.2,0.00843384]
[1743731933285,3.21623384,1774.6,1774.2,3.84e-06]
[1743731933485,3.2078,1774.3,1773.1,3.2078]
[1743731933685,3.21623384,1774.6,1773.3,3.2078]
[1743731933882,3.21623384,1774.6,1772.8,61.429]
[1743731933883,1.12773,1774.2,1773.7,1.128]
[1743731934085,7.75604043,1774.5,1773.4,3.2078]
[1743731934387,3.2078,1774.6,1773.6,3.2078]
[1743731934588,1.12846,1773.0,1772.7,0.7216]
[1743731934887,3.2078,1772.8,1771.9,3.2078]
[1743731935079,3.2078,1773.0,1772.8,1.12857]
[1743731935280,3.2078,1773.7,1772.8,3.2078]
[1743731935580,4.80251632,1774.2,1773.6,3.2078]
[1743731935781,3.2078,1775.7,1774.1,3.2078]
[1743731936085,3.2078,1776.4,1775.6,3.2078]
[1743731936289,3.2078,1776.6,1775.7,3.2078]
[1743731936589,2.81402,1777.5,1776.4,3.2078]
[1743731936891,3.2078,1777.4,1776.5,3.2078]
[1743731937078,0.00845784,1777.1,1776.1,3.2078]
[1743731937284,3.2078,1776.9,1776.0,0.00845784]
[1743731937494,1.12623,1776.5,1776.4,0.0129148]
[1743731937793,3.2078,1776.5,1775.8,3.2078]
[1743731937982,3.2078,1776.0,1774.4,3.2078]
[1743731938183,3.2078,1775.1,1774.7,3.2078]
[1743731938382,3.2078,1775.9,1775.0,3.2078]
[1743731938586,0.00845784,1775.1,1775.0,0.00845784]
[1743731938883,3.2078,1776.2,1775.0,3.21625784]
[1743731939086,9.183,1775.1,1773.9,3.2078]
[1743731939279,5.63276,1776.1,1773.9,3.2078]
[1743731939280,3.2078,1774.3,1773.9,3.2078]
[1743731939481,3.2078,1775.0,1774.0,3.2078]
[1743731939688,3.2078,1775.1,1774.1,3.2078]
[1743731939885,3.2078,1775.9,1775.0,3.2078]
[1743731940188,3.2078,1776.2,1775.4,0.01619296]
[1743731940381,3.2078,1776.4,1776.1,3.2078]
[1743731940584,1.12568,1777.4,1776.3,6.0237]
[1743731940781,1.1256,1777.5,1777.4,0.06030109]
[1743731940985,0.00845784,1777.0,1776.8,0.02428704]
[1743731941183,3.2078,1777.9,1776.8,3.23208704]
[1743731941382,1.12596,1777.0,1776.7,0.00845784]
[1743731941588,3.2078,1777.1,1776.2,3.2078]
[1743731941787,3.2078,1776.3,1774.5,3.2078]
[1743731941990,3.2078,1775.7,1774.7,3.2078]
[1743731942195,3.2078,1775.6,1775.1,3.2078]
[1743731942396,3.2078,1775.6,1775.2,1.4484]
[1743731942584,3.2078,1776.4,1775.2,0.30563]
[1743731942892,3.2078,1776.5,1776.4,1.12628]
[1743731943088,3.2078,1777.3,1776.4,3.2078]
[1743731943289,1.12556,1777.6,1776.7,3.2078]
[1743731943488,3.2078,1777.6,1777.4,1.12561]
[1743731943693,3.2078,1778.1,1777.4,3.2078]
[1743731943884,3.2078,1778.4,1777.1,3.2078]
[1743731944084,0.00845784,1777.9,1777.5,3.2078]
[1743731944284,3.2078,1778.7,1777.7,3.2078]
[1743731944485,1.12502,1778.5,1778.2,3.2078]